{"text_format":"1","workbook":"xlsx","n_sheets":2,"sheets":["Бюджет студента на месяц","вычисления_диаграмм"],"not_rendered":{"charts":4,"images":0,"macros":0,"external_links":1,"defined_names":19,"comments":0,"pivot_tables":0},"unopened":[],"bounds":{"document_bytes":16777216,"sheet_cells":100000,"rows_first":2000,"rows_last":500,"rows_between":2000,"halvings":0,"cell_chars":16384,"cell_head_chars":4096},"cells_cut":0,"cells_raw":0,"read":"whole","date_system":"1900"}

{"sheet":"Бюджет студента на месяц","index":0,"n_rows":73,"n_cols":17,"rows_kept":73,"cut":false,"hidden":false,"merged":[]}
[null,"Месячный"]
[{"$f":"\"\"","v":""},"Бюджет студента"]
[""]
[""]
["",{"$f":"вычисления_диаграмм!$D$6","v":"доходы за март:"},null,null,{"$f":"вычисления_диаграмм!$D$7","v":"расходы за март:"},null,null,null,null,null,null,null,null,{"$f":"вычисления_диаграмм!$D$8","v":"движение средств за март:"}]
["",{"$f":"\" \"&вычисления_диаграмм!$F$6","v":" 2 425p."},null,null,null,{"$f":"\" \"&вычисления_диаграмм!$F$7","v":" 2 233p."},null,null,null,null,null,null,null,{"$f":"\" \"&вычисления_диаграмм!$F$8","v":" 192p."}]
[""]
[""]
[""]
[""]
[""]
[""]
[""]
[""]
[""]
[""]
[""]
[""]
[""]
[""]
[""]
[]
[]
[]
[]
[null,"ЯНВ"," Выберите первый бюджетный месяц"]
[null,null,null,null,null,null,null,null,null,null,null,null,null,null,null,null,{"$f":"ВыбранныйПериод","v":"МАР "}]
[null,"Остаток после расходов за месяц",null,{"$f":"ПервыйМесяц","v":"ЯНВ "},{"$f":"СледующийМесяц","v":"ФЕВ "},"МАР ","АПР ","МАЙ ","ИЮН ","ИЮЛ ","АВГ ","СЕН ","ОКТ ","НОЯ ","ДЕК ","ГОД  ","ПРОЦЕНТ УВЕЛИЧЕНИЯ"]
[null,"Движение денежных средств",null,{"$f":"D38-D73","v":169},69,192,199,204,-771,124,154,-721,109,34,-61,{"$f":"SUM(D29:O29)","v":-299},{"$f":"INDEX($D29:$P29,,СтолбецВыбранныйПериод)/INDEX($D$38:$P$38,,СтолбецВыбранныйПериод)","v":7.9175257731958756E-2}]
[null,"Движение денежных средств (с накоплением)",null,{"$f":"SUM($D$29:D$29)","v":169},{"$f":"SUM($D$29:E$29)","v":238},{"$f":"SUM($D$29:F$29)","v":430},{"$f":"SUM($D$29:G$29)","v":629},{"$f":"SUM($D$29:H$29)","v":833},{"$f":"SUM($D$29:I$29)","v":62},{"$f":"SUM($D$29:J$29)","v":186},{"$f":"SUM($D$29:K$29)","v":340},{"$f":"SUM($D$29:L$29)","v":-381},{"$f":"SUM($D$29:M$29)","v":-272},{"$f":"SUM($D$29:N$29)","v":-238},{"$f":"SUM($D$29:O$29)","v":-299}]
[]
[null,"ДОХОДЫ ЗА МЕСЯЦ",null,{"$f":"ПервыйМесяц","v":"ЯНВ "},{"$f":"СледующийМесяц","v":"ФЕВ "},"МАР ","АПР ","МАЙ ","ИЮН ","ИЮЛ ","АВГ ","СЕН ","ОКТ ","НОЯ ","ДЕК ","ГОД  ","ПРОЦЕНТ УВЕЛИЧЕНИЯ"]
[null,"Полученная финансовая помощь (гранты, стипендии, кредиты)",null,0,0,750,750,750,750,750,750,750,750,750,750,{"$f":"SUM(D33:O33)","v":7500},{"$f":"INDEX($D33:$P33,,СтолбецВыбранныйПериод)/INDEX($D$38:$P$38,,СтолбецВыбранныйПериод)","v":0.30927835051546393}]
[null,"Зарплата после уплаты налогов",null,450,450,450,450,450,450,450,450,550,350,350,350,5200,{"$f":"INDEX($D34:$P34,,СтолбецВыбранныйПериод)/INDEX($D$38:$P$38,,СтолбецВыбранныйПериод)","v":0.18556701030927836}]
[null,"Финансовая помощь семьи",null,200,200,1000,350,350,350,350,350,350,350,350,350,4550,{"$f":"INDEX($D35:$P35,,СтолбецВыбранныйПериод)/INDEX($D$38:$P$38,,СтолбецВыбранныйПериод)","v":0.41237113402061853}]
[null,"Траты из сбережений",null,500,350,150,0,0,0,0,0,0,0,0,0,1000,{"$f":"INDEX($D36:$P36,,СтолбецВыбранныйПериод)/INDEX($D$38:$P$38,,СтолбецВыбранныйПериод)","v":6.1855670103092786E-2}]
[null,"Другое (пособие на ребенка, социальная помощь, подарки и т. д.)",null,75,75,75,75,75,75,75,75,75,75,75,75,900,{"$f":"INDEX($D37:$P37,,СтолбецВыбранныйПериод)/INDEX($D$38:$P$38,,СтолбецВыбранныйПериод)","v":3.0927835051546393E-2}]
[null,"ОБЩИЕ ДОХОДЫ",null,{"$f":"SUM(D33:D37)","v":1225},1075,2425,1625,1625,1625,1625,1625,1725,1525,1525,1525,{"$f":"SUM(D38:O38)","v":19150},{"$f":"INDEX($D38:$P38,,СтолбецВыбранныйПериод)/INDEX($D$38:$P$38,,СтолбецВыбранныйПериод)","v":1}]
[]
[null,"РАСХОДЫ ЗА МЕСЯЦ",null,{"$f":"ПервыйМесяц","v":"ЯНВ "},{"$f":"СледующийМесяц","v":"ФЕВ "},"МАР ","АПР ","МАЙ ","ИЮН ","ИЮЛ ","АВГ ","СЕН ","ОКТ ","НОЯ ","ДЕК ","ГОД  ","ПРОЦЕНТ УВЕЛИЧЕНИЯ"]
[null,"Проживание и питание",null,{"$f":"SUM(D42:D44)","v":565},565,565,565,565,565,565,565,565,565,565,565,{"$f":"SUM(D41:O41)","v":6780},{"$f":"INDEX($D41:$P41,,СтолбецВыбранныйПериод)/INDEX($D$73:$P$73,,СтолбецВыбранныйПериод)","v":0.25302283922973579}]
[null,null,"Аренда, ипотека или плата за общежитие",315,315,315,315,315,315,315,315,315,315,315,315,{"$f":"SUM(D42:O42)","v":3780},{"$f":"INDEX($D42:$P42,,СтолбецВыбранныйПериод)/INDEX($D$73:$P$73,,СтолбецВыбранныйПериод)","v":0.14106583072100312}]
[null,null,"Питание (расходы на продукты или столовую)",200,200,200,200,200,200,200,200,200,200,200,200,{"$f":"SUM(D43:O43)","v":2400},{"$f":"INDEX($D43:$P43,,СтолбецВыбранныйПериод)/INDEX($D$73:$P$73,,СтолбецВыбранныйПериод)","v":8.9565606806986123E-2}]
[null,null,"Коммунальные услуги (отопление, вода, электричество)",50,50,50,50,50,50,50,50,50,50,50,50,{"$f":"SUM(D44:O44)","v":600},{"$f":"INDEX($D44:$P44,,СтолбецВыбранныйПериод)/INDEX($D$73:$P$73,,СтолбецВыбранныйПериод)","v":2.2391401701746531E-2}]
[]
[null,"Плата за обучение и сборы",null,{"$f":"SUM(D47:D48)","v":0},0,750,0,0,650,0,0,650,0,0,0,{"$f":"SUM(D46:O46)","v":2050},{"$f":"INDEX($D46:$P46,,СтолбецВыбранныйПериод)/INDEX($D$73:$P$73,,СтолбецВыбранныйПериод)","v":0.33587102552619796}]
[null,null,"Плата за обучение",0,0,500,0,0,500,0,0,500,0,0,0,{"$f":"SUM(D47:O47)","v":1500},{"$f":"INDEX($D47:$P47,,СтолбецВыбранныйПериод)/INDEX($D$73:$P$73,,СтолбецВыбранныйПериод)","v":0.2239140170174653}]
[null,null,"Сборы",0,0,250,0,0,150,0,0,150,0,0,0,{"$f":"SUM(D48:O48)","v":550},{"$f":"INDEX($D48:$P48,,СтолбецВыбранныйПериод)/INDEX($D$73:$P$73,,СтолбецВыбранныйПериод)","v":0.11195700850873265}]
[]
[null,"Книги и принадлежности",null,{"$f":"SUM(D51:D52)","v":0},0,325,20,20,325,10,10,400,15,15,15,{"$f":"SUM(D50:O50)","v":1155},{"$f":"INDEX($D50:$P50,,СтолбецВыбранныйПериод)/INDEX($D$73:$P$73,,СтолбецВыбранныйПериод)","v":0.14554411106135243}]
[null,null,"Учебники",0,0,225,0,0,275,0,0,325,0,0,0,{"$f":"SUM(D51:O51)","v":825},{"$f":"INDEX($D51:$P51,,СтолбецВыбранныйПериод)/INDEX($D$73:$P$73,,СтолбецВыбранныйПериод)","v":0.10076130765785939}]
[null,null,"Учебные принадлежности",0,0,100,20,20,50,10,10,75,15,15,15,{"$f":"SUM(D52:O52)","v":330},{"$f":"INDEX($D52:$P52,,СтолбецВыбранныйПериод)/INDEX($D$73:$P$73,,СтолбецВыбранныйПериод)","v":4.4782803403493061E-2}]
[]
[null,"Транспорт",null,{"$f":"SUM(D55:D58)","v":224},174,174,219,174,174,274,219,174,174,224,269,{"$f":"SUM(D54:O54)","v":2473},{"$f":"INDEX($D54:$P54,,СтолбецВыбранныйПериод)/INDEX($D$73:$P$73,,СтолбецВыбранныйПериод)","v":7.792207792207792E-2}]
[null,null,"Газ, обслуживание",30,30,30,75,30,30,30,75,30,30,30,75,{"$f":"SUM(D55:O55)","v":495},{"$f":"INDEX($D55:$P55,,СтолбецВыбранныйПериод)/INDEX($D$73:$P$73,,СтолбецВыбранныйПериод)","v":1.3434841021047918E-2}]
[null,null,"Автомобиль",129,129,129,129,129,129,129,129,129,129,129,129,{"$f":"SUM(D56:O56)","v":1548},{"$f":"INDEX($D56:$P56,,СтолбецВыбранныйПериод)/INDEX($D$73:$P$73,,СтолбецВыбранныйПериод)","v":5.7769816390506046E-2}]
[null,null,"Расходы на проезд",15,15,15,15,15,15,15,15,15,15,15,15,{"$f":"SUM(D57:O57)","v":180},{"$f":"INDEX($D57:$P57,,СтолбецВыбранныйПериод)/INDEX($D$73:$P$73,,СтолбецВыбранныйПериод)","v":6.717420510523959E-3}]
[null,null,"Поездки по выходным",50,0,0,0,0,0,100,0,0,0,50,50,{"$f":"SUM(D58:O58)","v":250},{"$f":"INDEX($D58:$P58,,СтолбецВыбранныйПериод)/INDEX($D$73:$P$73,,СтолбецВыбранныйПериод)","v":0}]
[]
[null,"По усмотрению",null,{"$f":"SUM(D61:D66)","v":69},69,169,369,419,444,419,419,394,394,419,469,{"$f":"SUM(D60:O60)","v":4053},{"$f":"INDEX($D60:$P60,,СтолбецВыбранныйПериод)/INDEX($D$73:$P$73,,СтолбецВыбранныйПериод)","v":7.5682937751903268E-2}]
[null,null,"Сбережения",0,0,0,50,100,100,100,100,75,75,100,100,800,{"$f":"INDEX($D61:$P61,,СтолбецВыбранныйПериод)/INDEX($D$73:$P$73,,СтолбецВыбранныйПериод)","v":0}]
[null,null,"Мобильный телефон, Интернет, кабельное телевидение",69,69,69,69,69,69,69,69,69,69,69,69,828,{"$f":"INDEX($D62:$P62,,СтолбецВыбранныйПериод)/INDEX($D$73:$P$73,,СтолбецВыбранныйПериод)","v":3.090013434841021E-2}]
[null,null,"Пожертвования",0,0,0,0,0,25,0,0,0,0,0,50,75,{"$f":"INDEX($D63:$P63,,СтолбецВыбранныйПериод)/INDEX($D$73:$P$73,,СтолбецВыбранныйПериод)","v":0}]
[null,null,"Закуски, обеды",0,0,100,100,100,100,100,100,100,100,100,100,1000,{"$f":"INDEX($D64:$P64,,СтолбецВыбранныйПериод)/INDEX($D$73:$P$73,,СтолбецВыбранныйПериод)","v":4.4782803403493061E-2}]
[null,null,"Одежда",0,0,0,50,50,50,50,50,50,50,50,50,450,{"$f":"INDEX($D65:$P65,,СтолбецВыбранныйПериод)/INDEX($D$73:$P$73,,СтолбецВыбранныйПериод)","v":0}]
[null,null,"Развлечения (кино, свидания, концерты)",0,0,0,100,100,100,100,100,100,100,100,100,900,{"$f":"INDEX($D66:$P66,,СтолбецВыбранныйПериод)/INDEX($D$73:$P$73,,СтолбецВыбранныйПериод)","v":0}]
[]
[null,"Другие расходы",null,{"$f":"SUM(D69:D71)","v":198},{"$f":"SUM(E69:E71)","v":198},250,253,243,238,233,258,263,268,268,268,{"$f":"SUM(D68:O68)","v":2938},{"$f":"INDEX($D68:$P68,,СтолбецВыбранныйПериод)/INDEX($D$73:$P$73,,СтолбецВыбранныйПериод)","v":0.11195700850873265}]
[null,null,"Страхование (автомобиль, здоровье, жилье)",123,123,123,123,123,123,123,123,123,123,123,123,{"$f":"SUM(D69:O69)","v":1476},{"$f":"INDEX($D69:$P69,,СтолбецВыбранныйПериод)/INDEX($D$73:$P$73,,СтолбецВыбранныйПериод)","v":5.5082848186296461E-2}]
[null,null,"Ссуды, расходы по кредитной карте",0,0,52,55,45,40,35,60,65,70,70,70,{"$f":"SUM(D70:O70)","v":562},{"$f":"INDEX($D70:$P70,,СтолбецВыбранныйПериод)/INDEX($D$73:$P$73,,СтолбецВыбранныйПериод)","v":2.3287057769816391E-2}]
[null,null,"Другое",75,75,75,75,75,75,75,75,75,75,75,75,{"$f":"SUM(D71:O71)","v":900},{"$f":"INDEX($D71:$P71,,СтолбецВыбранныйПериод)/INDEX($D$73:$P$73,,СтолбецВыбранныйПериод)","v":3.3587102552619791E-2}]
[]
[null,"ОБЩИЕ РАСХОДЫ",null,{"$f":"SUM(D41,D46,D50,D54,D60,D68)","v":1056},1006,2233,1426,1421,2396,1501,1471,2446,1416,1491,1586,{"$f":"SUM(D73:O73)","v":19449},{"$f":"INDEX($D73:$P73,,СтолбецВыбранныйПериод)/INDEX($D$73:$P$73,,СтолбецВыбранныйПериод)","v":1}]

{"sheet":"вычисления_диаграмм","index":1,"n_rows":23,"n_cols":16,"rows_kept":23,"cut":false,"hidden":true,"merged":[]}
["***Этот лист должен оставаться СКРЫТЫМ***"]
[]
[null,null,null,{"$f":"IFERROR(LOWER(TEXT(VALUE(ВыбранныйПериод&\" 1\"),\"ММММ\")),\"ГОД\")","v":"март"}]
[]
[null,null,null,"Заголовки динамических диаграмм"]
[null,null,null,{"$f":"\"доходы за \"&D3&\":\"","v":"доходы за март:"},null,{"$f":"TEXT(INDEX('Бюджет студента на месяц'!$D$38:$P$38,,СтолбецВыбранныйПериод),\"# ###p.\")","v":"2 425p."}]
[null,null,null,{"$f":"\"расходы за \"&D3&\":\"","v":"расходы за март:"},null,{"$f":"TEXT(INDEX('Бюджет студента на месяц'!$D$73:$P$73,,СтолбецВыбранныйПериод),\"# ###p.\")","v":"2 233p."}]
[null,null,null,{"$f":"\"движение средств за \"&D3&\":\"","v":"движение средств за март:"},{"$f":"INDEX('Бюджет студента на месяц'!D29:P29,ЗначениеПолосыПрокрутки)","v":192},{"$f":"TEXT(E8,\"# ###p.\")","v":"192p."}]
[]
[]
[]
[null,null,null,{"$f":"LOWER('Бюджет студента на месяц'!D28)","v":"янв "},{"$f":"LOWER('Бюджет студента на месяц'!E28)","v":"фев "},{"$f":"LOWER('Бюджет студента на месяц'!F28)","v":"мар "},{"$f":"LOWER('Бюджет студента на месяц'!G28)","v":"апр "},{"$f":"LOWER('Бюджет студента на месяц'!H28)","v":"май "},{"$f":"LOWER('Бюджет студента на месяц'!I28)","v":"июн "},{"$f":"LOWER('Бюджет студента на месяц'!J28)","v":"июл "},{"$f":"LOWER('Бюджет студента на месяц'!K28)","v":"авг "},{"$f":"LOWER('Бюджет студента на месяц'!L28)","v":"сен "},{"$f":"LOWER('Бюджет студента на месяц'!M28)","v":"окт "},{"$f":"LOWER('Бюджет студента на месяц'!N28)","v":"ноя "},{"$f":"LOWER('Бюджет студента на месяц'!O28)","v":"дек "},{"$f":"LOWER('Бюджет студента на месяц'!P28)","v":"год  "}]
[null,null,"Значение полосы прокрутки: ",3]
[null,null,"Диаграмма движения денежных средств: ",{"$f":"IF(ВыбранныйПериод='Бюджет студента на месяц'!D$32,IF('Бюджет студента на месяц'!$D$29:$P$29>=0,'Бюджет студента на месяц'!$D$29:$P$29,NA()),NA())","v":{"$error":"#N/A"}},{"$f":"IF(ВыбранныйПериод='Бюджет студента на месяц'!E$32,IF('Бюджет студента на месяц'!$D$29:$P$29>=0,'Бюджет студента на месяц'!$D$29:$P$29,NA()),NA())","v":{"$error":"#N/A"}},{"$f":"IF(ВыбранныйПериод='Бюджет студента на месяц'!F$32,IF('Бюджет студента на месяц'!$D$29:$P$29>=0,'Бюджет студента на месяц'!$D$29:$P$29,NA()),NA())","v":192},{"$f":"IF(ВыбранныйПериод='Бюджет студента на месяц'!G$32,IF('Бюджет студента на месяц'!$D$29:$P$29>=0,'Бюджет студента на месяц'!$D$29:$P$29,NA()),NA())","v":{"$error":"#N/A"}},{"$f":"IF(ВыбранныйПериод='Бюджет студента на месяц'!H$32,IF('Бюджет студента на месяц'!$D$29:$P$29>=0,'Бюджет студента на месяц'!$D$29:$P$29,NA()),NA())","v":{"$error":"#N/A"}},{"$f":"IF(ВыбранныйПериод='Бюджет студента на месяц'!I$32,IF('Бюджет студента на месяц'!$D$29:$P$29>=0,'Бюджет студента на месяц'!$D$29:$P$29,NA()),NA())","v":{"$error":"#N/A"}},{"$f":"IF(ВыбранныйПериод='Бюджет студента на месяц'!J$32,IF('Бюджет студента на месяц'!$D$29:$P$29>=0,'Бюджет студента на месяц'!$D$29:$P$29,NA()),NA())","v":{"$error":"#N/A"}},{"$f":"IF(ВыбранныйПериод='Бюджет студента на месяц'!K$32,IF('Бюджет студента на месяц'!$D$29:$P$29>=0,'Бюджет студента на месяц'!$D$29:$P$29,NA()),NA())","v":{"$error":"#N/A"}},{"$f":"IF(ВыбранныйПериод='Бюджет студента на месяц'!L$32,IF('Бюджет студента на месяц'!$D$29:$P$29>=0,'Бюджет студента на месяц'!$D$29:$P$29,NA()),NA())","v":{"$error":"#N/A"}},{"$f":"IF(ВыбранныйПериод='Бюджет студента на месяц'!M$32,IF('Бюджет студента на месяц'!$D$29:$P$29>=0,'Бюджет студента на месяц'!$D$29:$P$29,NA()),NA())","v":{"$error":"#N/A"}},{"$f":"IF(ВыбранныйПериод='Бюджет студента на месяц'!N$32,IF('Бюджет студента на месяц'!$D$29:$P$29>=0,'Бюджет студента на месяц'!$D$29:$P$29,NA()),NA())","v":{"$error":"#N/A"}},{"$f":"IF(ВыбранныйПериод='Бюджет студента на месяц'!O$32,IF('Бюджет студента на месяц'!$D$29:$P$29>=0,'Бюджет студента на месяц'!$D$29:$P$29,NA()),NA())","v":{"$error":"#N/A"}},{"$f":"IF(ВыбранныйПериод='Бюджет студента на месяц'!P$32,IF('Бюджет студента на месяц'!$D$29:$P$29>=0,'Бюджет студента на месяц'!$D$29:$P$29,NA()),NA())","v":{"$error":"#N/A"}}]
[null,null,"Накопительное значение: ",{"$f":"IF(ВыбранныйПериод='Бюджет студента на месяц'!D$32,IF('Бюджет студента на месяц'!$D$29:$P$29<0,'Бюджет студента на месяц'!$D$29:$P$29,NA()),NA())","v":{"$error":"#N/A"}},{"$f":"IF(ВыбранныйПериод='Бюджет студента на месяц'!E$32,IF('Бюджет студента на месяц'!$D$29:$P$29<0,'Бюджет студента на месяц'!$D$29:$P$29,NA()),NA())","v":{"$error":"#N/A"}},{"$f":"IF(ВыбранныйПериод='Бюджет студента на месяц'!F$32,IF('Бюджет студента на месяц'!$D$29:$P$29<0,'Бюджет студента на месяц'!$D$29:$P$29,NA()),NA())","v":{"$error":"#N/A"}},{"$f":"IF(ВыбранныйПериод='Бюджет студента на месяц'!G$32,IF('Бюджет студента на месяц'!$D$29:$P$29<0,'Бюджет студента на месяц'!$D$29:$P$29,NA()),NA())","v":{"$error":"#N/A"}},{"$f":"IF(ВыбранныйПериод='Бюджет студента на месяц'!H$32,IF('Бюджет студента на месяц'!$D$29:$P$29<0,'Бюджет студента на месяц'!$D$29:$P$29,NA()),NA())","v":{"$error":"#N/A"}},{"$f":"IF(ВыбранныйПериод='Бюджет студента на месяц'!I$32,IF('Бюджет студента на месяц'!$D$29:$P$29<0,'Бюджет студента на месяц'!$D$29:$P$29,NA()),NA())","v":{"$error":"#N/A"}},{"$f":"IF(ВыбранныйПериод='Бюджет студента на месяц'!J$32,IF('Бюджет студента на месяц'!$D$29:$P$29<0,'Бюджет студента на месяц'!$D$29:$P$29,NA()),NA())","v":{"$error":"#N/A"}},{"$f":"IF(ВыбранныйПериод='Бюджет студента на месяц'!K$32,IF('Бюджет студента на месяц'!$D$29:$P$29<0,'Бюджет студента на месяц'!$D$29:$P$29,NA()),NA())","v":{"$error":"#N/A"}},{"$f":"IF(ВыбранныйПериод='Бюджет студента на месяц'!L$32,IF('Бюджет студента на месяц'!$D$29:$P$29<0,'Бюджет студента на месяц'!$D$29:$P$29,NA()),NA())","v":{"$error":"#N/A"}},{"$f":"IF(ВыбранныйПериод='Бюджет студента на месяц'!M$32,IF('Бюджет студента на месяц'!$D$29:$P$29<0,'Бюджет студента на месяц'!$D$29:$P$29,NA()),NA())","v":{"$error":"#N/A"}},{"$f":"IF(ВыбранныйПериод='Бюджет студента на месяц'!N$32,IF('Бюджет студента на месяц'!$D$29:$P$29<0,'Бюджет студента на месяц'!$D$29:$P$29,NA()),NA())","v":{"$error":"#N/A"}},{"$f":"IF(ВыбранныйПериод='Бюджет студента на месяц'!O$32,IF('Бюджет студента на месяц'!$D$29:$P$29<0,'Бюджет студента на месяц'!$D$29:$P$29,NA()),NA())","v":{"$error":"#N/A"}},{"$f":"IF(ВыбранныйПериод='Бюджет студента на месяц'!P$32,IF('Бюджет студента на месяц'!$D$29:$P$29<0,'Бюджет студента на месяц'!$D$29:$P$29,NA()),NA())","v":{"$error":"#N/A"}}]
[]
[]
[null,null,"ДАННЫЕ ДЛЯ ДИАГРАММЫ ДОХОДОВ"]
[null,null,"Полученная финансовая помощь (гранты, стипендии, кредиты)",{"$f":"'Бюджет студента на месяц'!Q33","v":0.30927835051546393}]
[null,null,"Зарплата после уплаты налогов",{"$f":"'Бюджет студента на месяц'!Q34","v":0.18556701030927836}]
[null,null,"Финансовая помощь семьи",{"$f":"'Бюджет студента на месяц'!Q35","v":0.41237113402061853}]
[null,null,"Траты из сбережений",{"$f":"'Бюджет студента на месяц'!Q36","v":6.1855670103092786E-2}]
[null,null,"Другое (пособие на ребенка, социальная помощь, подарки и т. д.)",{"$f":"'Бюджет студента на месяц'!Q37","v":3.0927835051546393E-2}]